fUSD/lending_fUSD_20250523
["ID","MTS","AMOUNT","RATE_DAILY","PERIOD"]
[362093662,1747990243584,-431.0300363,0.00027533,4]
[362093664,1747990243593,-4610.09,0.00027533,4]
[362093666,1747990243603,-423.54875909,0.00027533,4]
[362093669,1747990243614,-420.0,0.00027533,4]
[362093670,1747990243624,-511.58248721,0.00027533,4]
[362093672,1747990243633,-521.05,0.00027533,4]
[362093674,1747990243643,-420.0,0.00027533,4]
[362093676,1747990243653,-420.0,0.00027533,4]
[362093678,1747990243663,-420.0,0.00027533,4]
[362093680,1747990243673,-420.0,0.00027533,4]
[362093682,1747990243682,-420.0,0.00027533,4]
[362093684,1747990243692,-420.0,0.00027533,4]
[362093686,1747990243702,-420.0,0.00027533,4]
[362093688,1747990243715,-420.0,0.00027533,4]
[362093690,1747990243724,-989.54,0.00027533,4]
[362093692,1747990243734,-440.88,0.00027533,4]
[362093694,1747990243743,-420.0,0.00027533,4]
[362093696,1747990243755,-420.0,0.00027533,4]
[362093698,1747990243764,-420.0,0.00027533,4]
[362093700,1747990243773,-202.64,0.00027533,4]
[362093702,1747990243784,-420.0,0.00027533,4]
[362093704,1747990243794,-420.0,0.00027533,4]
[362093706,1747990243804,-420.0,0.00027533,4]
[362093708,1747990243814,-420.0,0.00027533,4]
[362093710,1747990243823,-313.92693086,0.00027533,4]
[362093712,1747990243833,-530.52,0.00027533,4]
[362093714,1747990243843,-487.98,0.00027533,4]
[362093716,1747990243852,-420.0,0.00027533,4]
[362093718,1747990243862,-657.76,0.00027533,4]
[362093720,1747990243873,-420.0,0.00027533,4]
[362093722,1747990243883,-649.68,0.00027533,4]
[362093723,1747990243892,-355.55610739,0.00027533,4]
[362093724,1747990243902,-420.0,0.00027533,4]
[362093725,1747990243911,-420.0,0.00027533,4]
[362093726,1747990243921,-827.47,0.00027533,4]
[362093727,1747990243931,-420.0,0.00027533,4]
[362093728,1747990243940,-420.0,0.00027533,4]
[362093730,1747990243949,-420.0,0.00027533,4]
[362093732,1747990243959,-327.58895762,0.00027533,4]
[362093733,1747990243968,-420.0,0.00027533,4]
[362093734,1747990243978,-420.0,0.00027533,4]
[362093735,1747990243987,-420.0,0.00027533,4]
[362093736,1747990243996,-420.0,0.00027533,4]
[362093737,1747990244007,-420.0,0.00027533,4]
[362093738,1747990244017,-420.0,0.00027533,4]
[362093739,1747990244026,-420.0,0.00027533,4]
[362093740,1747990244037,-420.0,0.00027533,4]
[362093741,1747990244047,-420.0,0.00027534,4]
[362093742,1747990244057,-420.0,0.00027534,4]
[362093743,1747990244066,-420.0,0.00027534,4]
[362093744,1747990244076,-557.45269948,0.00027534,4]
[362093745,1747990244086,-420.0,0.00027534,4]
[362093746,1747990244095,-420.0,0.00027534,4]
[362093747,1747990244105,-332.63832141,0.00027534,4]
[362093748,1747990244114,-420.0,0.00027534,4]
[362093749,1747990244124,-420.0,0.00027534,4]
[362093750,1747990244133,-420.0,0.00027534,4]
[362093751,1747990244143,-539.93551234,0.00027534,4]
[362093752,1747990244153,-420.0,0.00027534,4]
[362093754,1747990244163,-420.0,0.00027534,4]
[362093755,1747990244173,-420.0,0.00027534,4]
[362093757,1747990244182,-420.0,0.00027534,4]
[362093759,1747990244191,-420.0,0.00027534,4]
[362093760,1747990244201,-420.0,0.00027534,4]
[362093761,1747990244210,-420.0,0.00027534,4]
[362093762,1747990244219,-438.8754856,0.00027534,4]
[362093763,1747990244229,-420.0,0.00027534,4]
[362093764,1747990244238,-420.0,0.00027534,4]
[362093765,1747990244247,-420.0,0.00027534,4]
[362093766,1747990244257,-420.0,0.00027534,4]
[362093767,1747990244266,-429.1972981,0.00027534,4]
[362093768,1747990244275,-189.55195096,0.00027534,4]
[362093769,1747990244284,-195.34701307,0.00027534,4]
[362093770,1747990244293,-420.0,0.00027534,4]
[362093771,1747990244302,-199.45298656,0.00027534,4]
[362093772,1747990244311,-534.66727531,0.00027534,4]
[362093773,1747990244321,-420.0,0.00027534,4]
[362093774,1747990244330,-420.0,0.00027534,4]
[362093775,1747990244339,-420.0,0.00027534,4]
[362093776,1747990244348,-420.0,0.00027534,4]
[362093777,1747990244357,-420.0,0.00027534,4]
[362093778,1747990244366,-753.14,0.00027534,2]
[362093779,1747990244375,-420.0,0.00027534,4]
[362093780,1747990244385,-420.0,0.00027534,4]
[362093781,1747990244394,-312.77903103,0.00027534,4]
[362093782,1747990244404,-420.0,0.00027534,4]
[362093783,1747990244413,-420.0,0.00027534,4]
[362093784,1747990244423,-420.0,0.00027534,4]
[362093785,1747990244432,-243.18548163,0.00027534,4]
[362093786,1747990244441,-420.0,0.00027534,4]
[362093787,1747990244451,-430.73744773,0.00027534,4]
[362093788,1747990244460,-304.05001023,0.00027534,4]
[362093789,1747990244469,-197.18713356,0.00027534,4]
[362093790,1747990244479,-420.0,0.00027534,4]
[362093791,1747990244488,-420.0,0.00027534,4]
[362093792,1747990244496,-425.75879288,0.00027534,4]
[362093793,1747990244506,-420.0,0.00027534,4]
[362093794,1747990244515,-420.0,0.00027534,4]
[362093795,1747990244524,-420.0,0.00027534,4]
[362093796,1747990244533,-420.0,0.00027534,4]
[362093797,1747990244542,-420.0,0.00027534,4]
[362093798,1747990244551,-420.0,0.00027534,4]
[362093799,1747990244561,-420.0,0.00027534,4]
[362093800,1747990244570,-420.0,0.00027534,4]
[362093801,1747990244579,-428.76176908,0.00027534,4]
[362093802,1747990244588,-429.4627686,0.00027534,4]
[362093803,1747990244597,-420.0,0.00027534,4]
[362093804,1747990244606,-424.17192919,0.00027534,4]
[362093805,1747990244615,-420.0,0.00027534,4]
[362093806,1747990244624,-420.0,0.00027534,4]
[362093807,1747990244633,-420.0,0.00027534,4]
[362093808,1747990244643,-420.0,0.00027534,4]
[362093809,1747990244652,-420.0,0.00027534,4]
[362093810,1747990244661,-420.0,0.00027534,4]
[362093811,1747990244670,-420.0,0.00027534,4]
[362093812,1747990244679,-370.44348988,0.00027534,4]
[362093813,1747990244688,-420.0,0.00027534,4]
[362093814,1747990244698,-420.0,0.00027534,4]
[362093815,1747990244709,-421.76826188,0.00027534,4]
[362093816,1747990244722,-420.0,0.00027534,4]
[362093817,1747990244731,-420.0,0.00027534,4]
[362093818,1747990244740,-421.74539852,0.00027534,4]
[362093819,1747990244749,-427.26962694,0.00027534,4]
[362093820,1747990244758,-420.0,0.00027534,4]
[362093821,1747990244769,-420.0,0.00027534,4]
[362093822,1747990244778,-420.0,0.00027534,4]
[362093823,1747990244787,-463.08619385,0.00027534,4]
[362093824,1747990244797,-420.0,0.00027534,4]
[362093825,1747990244806,-420.0,0.00027534,4]
[362093826,1747990244815,-323.92440864,0.00027534,4]
[362093827,1747990244824,-420.0,0.00027534,4]
[362093828,1747990244834,-420.0,0.00027534,4]
[362093829,1747990244843,-423.48255212,0.00027534,4]
[362093830,1747990244852,-420.0,0.00027534,4]
[362093831,1747990244862,-420.0,0.00027534,4]
[362093832,1747990244871,-420.0,0.00027534,4]
[362093833,1747990244881,-420.0,0.00027534,4]
[362093834,1747990244890,-427.76120883,0.00027534,4]
[362093835,1747990244900,-420.0,0.00027534,4]
[362093836,1747990244909,-295.94245592,0.00027534,4]
[362093837,1747990244919,-480.94522668,0.00027534,4]
[362093838,1747990244928,-420.0,0.00027534,4]
[362093839,1747990244937,-420.0,0.00027534,4]
[362093840,1747990244947,-201.53241354,0.00027534,4]
[362093841,1747990244955,-447.35478218,0.00027534,4]
[362093842,1747990244965,-420.0,0.00027534,4]
[362093843,1747990244974,-448.7917514,0.00027534,4]
[362093844,1747990244984,-420.0,0.00027534,4]
[362093845,1747990244993,-420.0,0.00027534,4]
[362093846,1747990245002,-527.83614681,0.00027534,4]
[362093847,1747990245012,-420.0,0.00027534,4]
[362093848,1747990245021,-420.0,0.00027534,4]
[362093849,1747990245030,-300.0,0.00027534,4]
[362093850,1747990245040,-420.0,0.00027534,4]
[362093851,1747990245049,-420.0,0.00027534,4]
[362093852,1747990245058,-420.0,0.00027534,4]
[362093853,1747990245067,-420.0,0.00027534,4]
[362093854,1747990245075,-383.66196371,0.00027534,4]
[362093855,1747990245085,-420.0,0.00027534,4]
[362093856,1747990245094,-526.5568143,0.00027534,4]
[362093857,1747990245103,-420.0,0.00027534,4]
[362093858,1747990245112,-420.0,0.00027534,4]
[362093859,1747990245121,-475.75831727,0.00027534,2]
[362093860,1747990245131,-590.99,0.00027534,4]
[362093861,1747990245141,-420.0,0.00027534,4]
[362093862,1747990245152,-420.0,0.00027534,4]
[362093863,1747990245162,-435.46675274,0.00027534,4]
[362093864,1747990245171,-420.0,0.00027534,4]
[362093865,1747990245180,-420.0,0.00027534,4]
[362093866,1747990245189,-420.0,0.00027534,4]
[362093867,1747990245199,-461.87078216,0.00027534,4]
[362093868,1747990245207,-434.8609037,0.00027534,4]
[362093869,1747990245217,-420.0,0.00027534,4]
[362093870,1747990245226,-434.45801314,0.00027534,4]
[362093871,1747990245236,-420.0,0.00027534,4]
[362093872,1747990245245,-432.10287214,0.00027534,4]
[362093873,1747990245254,-420.0,0.00027534,4]
[362093874,1747990245264,-512.92933607,0.00027534,4]
[362093875,1747990245273,-444.36163457,0.00027534,4]
[362093876,1747990245282,-414.0,0.00027534,4]
[362093877,1747990245290,-424.02041225,0.00027534,4]
[362093878,1747990245299,-429.40329206,0.00027534,4]
[362093879,1747990245309,-420.0,0.00027534,4]
[362093880,1747990245318,-437.94264397,0.00027534,4]
[362093881,1747990245327,-420.0,0.00027534,4]
[362093882,1747990245336,-420.0,0.00027534,4]
[362093883,1747990245345,-435.14324571,0.00027534,4]
[362093884,1747990245354,-420.0,0.00027534,4]
[362093885,1747990245363,-440.45150359,0.00027534,4]
[362093886,1747990245372,-483.76458395,0.00027534,4]
[362093887,1747990245381,-435.52045993,0.00027534,4]
[362093888,1747990245390,-420.0,0.00027534,4]
[362093889,1747990245400,-429.06003072,0.00027534,4]
[362093890,1747990245409,-426.12457764,0.00027534,4]
[362093891,1747990245419,-441.12889865,0.00027534,4]
[362093892,1747990245429,-439.63994599,0.00027534,4]
[362093893,1747990245438,-426.63098716,0.00027534,4]
[362093894,1747990245448,-444.30700013,0.00027534,4]
[362093895,1747990245458,-420.0,0.00027534,4]
[362093896,1747990245468,-420.0,0.00027534,4]
[362093897,1747990245477,-420.0,0.00027534,4]
[362093898,1747990245487,-420.0,0.00027534,4]
[362093899,1747990245496,-420.0,0.00027534,4]
[362093900,1747990245506,-420.0,0.00027534,4]
[362093901,1747990245515,-420.0,0.00027534,4]
[362093902,1747990245525,-420.0,0.00027534,4]
[362093903,1747990245534,-422.39220702,0.00027534,4]
[362093904,1747990245545,-420.0,0.00027534,4]
[362093906,1747990245554,-420.0,0.00027534,4]
[362093908,1747990245563,-420.0,0.00027534,4]
[362093910,1747990245573,-429.84026147,0.00027534,4]
[362093912,1747990245582,-420.0,0.00027534,4]
[362093914,1747990245591,-420.0,0.00027534,4]
[362093916,1747990245600,-542.16678509,0.00027534,4]
[362093917,1747990245610,-195.3744763,0.00027534,4]
[362093919,1747990245619,-420.0,0.00027534,4]
[362093922,1747990245628,-506.23781084,0.00027534,4]
[362093926,1747990245638,-420.0,0.00027534,4]
[362093929,1747990245648,-420.0,0.00027534,4]
[362093930,1747990245657,-420.0,0.00027534,4]
[362093932,1747990245667,-420.0,0.00027534,4]
[362093935,1747990245677,-420.0,0.00027534,4]
[362093937,1747990245687,-420.0,0.00027534,4]
[362093939,1747990245696,-152.91379709,0.00027534,4]
[362093940,1747990245706,-420.0,0.00027534,4]
[362093941,1747990245718,-224.45,0.00027534,4]
[362093942,1747990245727,-1059.36,0.00027534,4]
[362093943,1747990245737,-638.13,0.00027534,4]
[362093944,1747990245746,-420.0,0.00027534,4]
[362093945,1747990245758,-3219.98,0.00027534,4]
[362093946,1747990245768,-420.0,0.00027534,4]
[362093947,1747990245778,-764.74,0.00027534,4]
[362093948,1747990245789,-420.0,0.00027534,4]
[362093949,1747990245799,-855.11,0.00027534,4]
[362093950,1747990245808,-420.0,0.00027534,4]
[362093951,1747990245818,-1568.78,0.00027534,4]
[362093952,1747990245828,-420.0,0.00027534,4]
[362093953,1747990245837,-536.4,0.00027534,4]
[362093954,1747990245848,-420.0,0.00027534,4]
[362093955,1747990245857,-420.0,0.00027534,4]
[362093956,1747990245866,-420.0,0.00027534,4]
[362093957,1747990245876,-420.0,0.00027534,4]
[362093958,1747990245885,-420.0,0.00027534,4]
[362093959,1747990245894,-420.0,0.00027534,4]
[362093960,1747990245903,-420.0,0.00027534,4]
[362093961,1747990245912,-420.0,0.00027534,4]
[362093962,1747990245921,-341.09033954,0.00027534,4]
[362093963,1747990245930,-1351.93,0.00027534,4]
[362093964,1747990245940,-420.57,0.00027534,4]
[362093965,1747990245950,-420.0,0.00027534,4]
[362093966,1747990245960,-420.0,0.00027534,4]
[362093967,1747990245970,-420.0,0.00027534,4]
[362093968,1747990245979,-420.0,0.00027534,4]
[362093969,1747990245989,-165.4,0.00027534,4]
[362093970,1747990245998,-420.0,0.00027534,4]
[362093971,1747990246008,-398.35064341,0.00027534,4]
[362093972,1747990246017,-8771.26,0.00027534,4]
[362093973,1747990246027,-420.0,0.00027534,4]
[362093974,1747990246036,-180.3668365,0.00027534,4]
[362093975,1747990246046,-420.0,0.00027534,4]
[362093976,1747990246056,-528.33,0.00027534,4]
[362093977,1747990246065,-420.0,0.00027534,4]
[362093978,1747990246076,-566.36316083,0.00027534,4]
[362093979,1747990246086,-420.0,0.00027534,4]
[362093980,1747990246095,-420.0,0.00027534,4]
[362093981,1747990246105,-666.63,0.00027534,4]
[362093982,1747990246115,-780.1,0.00027534,2]
[362093983,1747990246126,-420.0,0.00027534,4]
[362093984,1747990246136,-420.0,0.00027534,4]
[362093985,1747990246146,-479.56340288,0.00027534,4]
[362093986,1747990246155,-192.33456798,0.00027534,4]
[362093987,1747990246165,-420.0,0.00027534,4]
[362093988,1747990246175,-420.0,0.00027534,4]
[362093989,1747990246185,-420.0,0.00027534,4]
[362093990,1747990246194,-498.47,0.00027534,4]
[362093991,1747990246205,-420.0,0.00027534,4]
[362093993,1747990246214,-921.38,0.00027534,4]
[362093995,1747990246224,-420.0,0.00027534,4]
[362093997,1747990246235,-675.59,0.00027534,4]
[362093998,1747990246246,-458.3,0.00027534,4]
[362093999,1747990246256,-3080.82,0.00027534,4]
[362094000,1747990246266,-449.11,0.00027534,4]
[362094001,1747990246276,-420.0,0.00027534,4]
[362094002,1747990246286,-420.0,0.00027534,4]
[362094003,1747990246296,-502.2365362,0.00027534,4]
[362094004,1747990246306,-420.0,0.00027534,4]
[362094005,1747990246315,-1795.87,0.00027534,4]
[362094006,1747990246325,-420.0,0.00027534,4]
[362094007,1747990246334,-500.41109607,0.00027573,5]
[362094008,1747990246344,-500.0,0.00027573,5]
[362094009,1747990246355,-500.0,0.00027573,5]
[362094010,1747990246365,-640.84235729,0.00027573,5]
[362094012,1747990246375,-500.0,0.00027573,5]
[362094013,1747990246384,-500.0,0.00027573,5]
[362094014,1747990246394,-321.16051969,0.00027573,5]
[362094015,1747990246404,-229.97589073,0.00027573,2]
[362094016,1747990246413,-17097.20935495,0.00027583,2]
[362094017,1747990246423,-12432.5193559,0.00027641,3]
[362094018,1747990246433,-12432.5193559,0.0002765,3]
[362094019,1747990246443,-25024.8505192,0.00027651,3]
[362094020,1747990246453,-24865.0387118,0.00027651,3]
[362094021,1747990246468,-1073.50813171,0.00027659,17]
[362094022,1747990246477,-25024.8505192,0.0002766,3]
[362094023,1747990246486,-24865.0387118,0.0002766,3]
[362094024,1747990246496,-50049.7010384,0.00027661,3]
[362094025,1747990246506,-49730.0774237,0.00027661,3]
[362094026,1747990246516,-152.689778,0.00027661,7]
[362094027,1747990246527,-275.54334246,0.0002767,4]
[362094028,1747990246536,-420.0,0.0002767,4]
[362094029,1747990246547,-565.90371757,0.0002767,4]
[362094030,1747990246558,-420.0,0.0002767,4]
[362094031,1747990246567,-420.0,0.0002767,4]
[362094032,1747990246577,-420.0,0.0002767,4]
[362094033,1747990246587,-420.0,0.0002767,4]
[362094034,1747990246596,-157.83736991,0.0002767,4]
[362094035,1747990246606,-420.0,0.0002767,4]
[362094036,1747990246615,-420.0,0.0002767,4]
[362094037,1747990246625,-420.0,0.0002767,4]
[362094038,1747990246635,-420.0,0.0002767,4]
[362094039,1747990246645,-566.04,0.0002767,4]
[362094040,1747990246655,-420.0,0.0002767,4]
[362094041,1747990246664,-420.0,0.0002767,4]
[362094042,1747990246673,-420.0,0.0002767,4]
[362094043,1747990246683,-447.25882588,0.0002767,4]
[362094044,1747990246692,-687.24,0.0002767,4]
[362094045,1747990246702,-256.87669797,0.0002767,4]
[362094046,1747990246715,-420.0,0.0002767,4]
[362094047,1747990246725,-420.0,0.0002767,4]
[362094048,1747990246734,-420.0,0.0002767,4]
[362094049,1747990246744,-420.0,0.0002767,4]
[362094050,1747990246755,-420.0,0.0002767,4]
[362094051,1747990246765,-420.0,0.0002767,4]
[362094052,1747990246775,-499.06,0.0002767,4]
[362094053,1747990246787,-420.0,0.0002767,4]
[362094054,1747990246796,-420.0,0.0002767,4]
[362094055,1747990246806,-420.0,0.0002767,4]
[362094056,1747990246816,-420.0,0.0002767,4]
[362094057,1747990246826,-420.0,0.0002767,4]
[362094058,1747990246836,-420.0,0.0002767,4]
[362094059,1747990246845,-160.31368157,0.0002767,4]
[362094060,1747990246855,-420.0,0.0002767,4]
[362094061,1747990246865,-420.0,0.0002767,4]
[362094062,1747990246874,-420.0,0.0002767,4]
[362094063,1747990246884,-420.0,0.0002767,4]
[362094064,1747990246893,-420.0,0.0002767,4]
[362094065,1747990246904,-420.0,0.0002767,4]
[362094066,1747990246914,-420.0,0.0002767,4]
[362094067,1747990246923,-1000.0,0.0002767,2]
[362094068,1747990246932,-420.0,0.0002767,4]
[362094069,1747990246942,-420.0,0.0002767,4]
[362094070,1747990246951,-461.29,0.0002767,4]
[362094071,1747990246961,-420.0,0.0002767,4]
[362094072,1747990246971,-420.0,0.0002767,4]
[362094073,1747990246981,-420.0,0.0002767,4]
[362094074,1747990246991,-420.0,0.0002767,4]
[362094075,1747990247000,-331.96229902,0.0002767,4]
[362094076,1747990247011,-420.0,0.0002767,4]
[362094077,1747990247021,-420.0,0.0002767,4]
[362094078,1747990247031,-420.0,0.0002767,4]
[362094079,1747990247041,-420.0,0.0002767,4]
[362094080,1747990247051,-420.0,0.0002767,4]
[362094081,1747990247062,-5569.15,0.0002767,4]
[362094082,1747990247072,-349.47,0.0002767,4]
[362094083,1747990247082,-2347.06,0.0002767,4]
[362094084,1747990247093,-420.0,0.0002767,4]
[362094085,1747990247104,-420.0,0.0002767,4]
[362094086,1747990247114,-420.0,0.0002767,4]
[362094087,1747990247124,-420.0,0.0002767,4]
[362094088,1747990247134,-395.79683063,0.0002767,4]
[362094089,1747990247144,-420.0,0.0002767,4]
[362094090,1747990247154,-420.0,0.0002767,4]
[362094091,1747990247165,-420.0,0.0002767,4]
[362094092,1747990247174,-420.0,0.0002767,4]
[362094093,1747990247185,-5982.83,0.0002767,4]
[362094094,1747990247195,-420.0,0.0002767,4]
[362094095,1747990247205,-420.0,0.0002767,4]
[362094096,1747990247215,-420.0,0.0002767,4]
[362094097,1747990247225,-420.0,0.0002767,4]
[362094098,1747990247236,-420.0,0.0002767,4]
[362094099,1747990247247,-420.0,0.0002767,4]
[362094100,1747990247258,-420.0,0.0002767,4]
[362094101,1747990247268,-542.68,0.0002767,4]
[362094102,1747990247278,-420.0,0.0002767,4]
[362094103,1747990247288,-420.0,0.0002767,4]
[362094104,1747990247298,-420.0,0.0002767,4]
[362094105,1747990247307,-420.0,0.0002767,4]
[362094106,1747990247319,-4610.09,0.0002767,4]
[362094107,1747990247329,-420.0,0.0002767,4]
[362094108,1747990247339,-521.05,0.0002767,4]
[362094109,1747990247349,-420.0,0.0002767,4]
[362094110,1747990247359,-420.0,0.0002767,4]
[362094111,1747990247369,-420.0,0.0002767,4]
[362094112,1747990247380,-420.0,0.0002767,4]
[362094113,1747990247390,-420.0,0.0002767,4]
[362094114,1747990247400,-420.0,0.0002767,4]
[362094115,1747990247411,-420.0,0.0002767,4]
[362094116,1747990247421,-420.0,0.0002767,4]
[362094117,1747990247431,-989.54,0.0002767,4]
[362094118,1747990247441,-420.0,0.0002767,4]
[362094119,1747990247451,-420.0,0.0002767,4]
[362094120,1747990247462,-420.0,0.0002767,4]
[362094121,1747990247472,-420.0,0.0002767,4]
[362094122,1747990247482,-299.37,0.0002767,4]
[362094123,1747990247493,-420.0,0.0002767,4]
[362094124,1747990247502,-657.76,0.0002767,4]
[362094125,1747990247514,-420.0,0.0002767,4]
[362094126,1747990247524,-649.68,0.0002767,4]
[362094127,1747990247534,-420.0,0.0002767,4]
[362094128,1747990247544,-420.0,0.0002767,4]
[362094129,1747990247555,-827.47,0.0002767,4]
[362094130,1747990247566,-420.0,0.0002767,4]
[362094131,1747990247576,-420.0,0.0002767,4]
[362094132,1747990247587,-420.0,0.0002767,4]
[362094133,1747990247599,-420.0,0.0002767,4]
[362094134,1747990247611,-420.0,0.0002767,4]
[362094135,1747990247622,-420.0,0.0002767,4]
[362094136,1747990247633,-453.04679237,0.0002767,4]
[362094137,1747990247642,-420.0,0.0002767,4]
[362094138,1747990247653,-420.0,0.0002767,4]
[362094139,1747990247662,-420.0,0.00027671,4]
[362094140,1747990247672,-420.0,0.00027671,4]
[362094141,1747990247682,-420.0,0.00027671,4]
[362094142,1747990247692,-420.0,0.00027671,4]
[362094143,1747990247702,-420.0,0.00027671,4]
[362094144,1747990247715,-420.0,0.00027671,4]
[362094145,1747990247725,-282.90427634,0.00027671,4]
[362094146,1747990247735,-420.0,0.00027671,4]
[362094147,1747990247745,-420.0,0.00027671,4]
[362094148,1747990247756,-307.42796374,0.00027671,4]
[362094149,1747990247767,-420.0,0.00027671,4]
[362094150,1747990247777,-420.0,0.00027671,4]
[362094151,1747990247787,-207.14804865,0.00027671,4]
[362094152,1747990247797,-377.79810441,0.00027671,4]
[362094153,1747990247808,-319.87669761,0.00027671,4]
[362094154,1747990247818,-161.03,0.00027671,4]
[362094155,1747990247828,-420.0,0.00027671,4]
[362094156,1747990247838,-420.0,0.00027671,4]
[362094157,1747990247849,-158.89720156,0.00027671,4]
[362094158,1747990247861,-420.0,0.00027671,4]
[362094159,1747990247872,-420.0,0.00027671,4]
[362094160,1747990247883,-420.0,0.00027671,4]
[362094161,1747990247895,-420.0,0.00027671,4]
[362094162,1747990247906,-420.0,0.00027671,4]
[362094163,1747990247917,-420.0,0.00027671,4]
[362094164,1747990247927,-753.14,0.00027671,2]
[362094165,1747990247937,-420.0,0.00027671,4]
[362094166,1747990247948,-420.0,0.00027671,4]
[362094167,1747990247958,-420.0,0.00027671,4]
[362094168,1747990247968,-420.0,0.00027671,4]
[362094169,1747990247978,-420.0,0.00027671,4]
[362094170,1747990247988,-420.0,0.00027671,4]
[362094171,1747990247998,-403.13914984,0.00027671,4]
[362094172,1747990248009,-177.56073682,0.00027671,4]
[362094173,1747990248018,-420.0,0.00027671,4]
[362094174,1747990248029,-420.0,0.00027671,4]
[362094175,1747990248039,-420.0,0.00027671,4]
[362094176,1747990248050,-420.0,0.00027671,4]
[362094177,1747990248060,-234.60201201,0.00027671,4]
[362094178,1747990248069,-426.9224955,0.00027671,4]
[362094179,1747990248079,-420.0,0.00027671,4]
[362094180,1747990248089,-420.0,0.00027671,4]
[362094181,1747990248099,-420.0,0.00027671,4]
[362094182,1747990248109,-438.56643448,0.00027671,4]
[362094183,1747990248119,-420.0,0.00027671,4]
[362094184,1747990248129,-420.0,0.00027671,4]
[362094185,1747990248140,-473.09664851,0.00027671,4]
[362094186,1747990248150,-492.57494848,0.00027671,4]
[362094187,1747990248160,-420.0,0.00027671,4]
[362094188,1747990248171,-420.0,0.00027671,4]
[362094189,1747990248181,-420.0,0.00027671,4]
[362094190,1747990248191,-420.0,0.00027671,4]
[362094191,1747990248201,-420.0,0.00027671,4]
[362094192,1747990248211,-449.87871118,0.00027671,4]
[362094193,1747990248221,-420.0,0.00027671,4]
[362094194,1747990248231,-466.06463653,0.00027671,4]
[362094195,1747990248242,-420.0,0.00027671,4]
[362094196,1747990248252,-420.0,0.00027671,4]
[362094197,1747990248262,-420.0,0.00027671,4]
[362094198,1747990248272,-430.88095035,0.00027671,4]
[362094199,1747990248282,-431.25536069,0.00027671,4]
[362094200,1747990248292,-442.60402049,0.00027671,4]
[362094201,1747990248302,-420.0,0.00027671,4]
[362094202,1747990248312,-440.89797073,0.00027671,4]
[362094203,1747990248323,-420.0,0.00027671,4]
[362094204,1747990248333,-420.0,0.00027671,4]
[362094205,1747990248343,-430.86846685,0.00027671,4]
[362094206,1747990248354,-429.11674064,0.00027671,4]
[362094207,1747990248365,-440.51375202,0.00027671,4]
[362094208,1747990248376,-420.0,0.00027671,4]
[362094209,1747990248386,-426.62766256,0.00027671,4]
[362094210,1747990248396,-420.0,0.00027671,4]
[362094211,1747990248406,-309.86598999,0.00027671,4]
[362094212,1747990248417,-420.0,0.00027671,4]
[362094213,1747990248428,-420.0,0.00027671,4]
[362094214,1747990248659,-420.0,0.00027671,4]
[362094215,1747990248672,-420.0,0.00027671,4]
[362094216,1747990248682,-420.0,0.00027671,4]
[362094217,1747990248693,-420.0,0.00027671,4]
[362094218,1747990248703,-420.0,0.00027671,4]
[362094219,1747990248716,-590.99,0.00027671,4]